bitfinex/quotes_BTCUSD_20250610
["timestamp","ask_amount","ask_price","bid_price","bid_amount"]
[1749527258379,0.24277621,109530.0,109520.0,0.94624947]
[1749527258793,0.24277621,109530.0,109520.0,0.93711889]
[1749527259000,0.24277621,109530.0,109520.0,0.39179829]
[1749527259197,0.24277621,109530.0,109520.0,0.93720911]
[1749527259402,0.24277621,109530.0,109520.0,0.94633969]
[1749527259881,0.24277621,109530.0,109520.0,0.39179829]
[1749527260234,0.24277621,109530.0,109520.0,0.94633969]
[1749527260511,0.24277621,109530.0,109520.0,0.39179829]
[1749527260958,0.24277621,109530.0,109520.0,0.94633969]
[1749527261173,0.24277621,109530.0,109520.0,0.93720911]
[1749527261559,0.24277621,109530.0,109520.0,1.50088109]
[1749527262809,0.24277621,109530.0,109520.0,0.94633969]
[1749527263036,0.24277621,109530.0,109520.0,1.50088109]
[1749527263444,0.24277621,109530.0,109520.0,1.49175051]
[1749527264032,0.24277621,109530.0,109520.0,1.48261985]
[1749527264243,0.24277621,109530.0,109520.0,1.31826622]
[1749527264399,0.24277621,109530.0,109520.0,1.30000481]
[1749527264607,0.23364663,109530.0,109520.0,1.30000481]
[1749527264815,0.23364663,109530.0,109520.0,0.19092201]
[1749527265028,0.22451697,109530.0,109520.0,0.74546341]
[1749527265238,0.22451697,109530.0,109520.0,0.38266771]
[1749527265459,0.22451697,109530.0,109520.0,0.93720911]
[1749527265914,0.22451697,109530.0,109520.0,0.19092201]
[1749527266131,0.22451697,109530.0,109520.0,0.75459407]
[1749527266733,0.22451697,109530.0,109520.0,0.93720911]
[1749527267249,0.22451697,109530.0,109520.0,1.50088109]
[1749527267517,0.22451697,109530.0,109520.0,1.49175051]
[1749527268279,0.22451697,109530.0,109520.0,0.38266771]
[1749527268513,0.22451697,109530.0,109520.0,0.93720911]
[1749527268925,0.23364663,109530.0,109520.0,0.38266771]
[1749527269080,0.23364663,109530.0,109520.0,1.49175051]
[1749527269488,0.23364663,109530.0,109520.0,0.38266771]
[1749527269704,0.23364663,109530.0,109520.0,1.49175051]
[1749527269898,0.22451697,109530.0,109520.0,1.49175051]
[1749527270377,0.22451697,109530.0,109520.0,1.50088109]
[1749527270795,0.00208869,109530.0,109520.0,1.61093969]
[1749527270996,0.21834663,109530.0,109520.0,1.60180936]
[1749527271232,0.03574793,109530.0,109520.0,1.60180936]
[1749527271440,0.02947709,109530.0,109520.0,1.62713952]
[1749527271845,0.02034743,109530.0,109520.0,1.62713952]
[1749527272052,0.02947701,109530.0,109520.0,1.64323952]
[1749527272634,0.03860668,109530.0,109520.0,1.64323952]
[1749527272804,0.03760659,109530.0,109520.0,1.64323952]
[1749527273012,0.04773634,109530.0,109520.0,1.64323952]
[1749527273207,0.04673634,109530.0,109520.0,1.73491952]
[1749527273478,0.03760659,109530.0,109520.0,1.73491952]
[1749527273830,0.04673684,109530.0,109520.0,1.71881952]
[1749527274912,0.03760701,109530.0,109520.0,1.71881952]
[1749527275124,0.00660701,109530.0,109520.0,1.71881952]
[1749527275707,0.16774722,109540.0,109530.0,0.6545414]
[1749527275919,0.16779575,109540.0,109530.0,1.03843177]
[1749527276131,0.16779575,109540.0,109530.0,0.48389037]
[1749527276349,0.16779575,109540.0,109530.0,1.03843177]
[1749527276576,0.16779575,109540.0,109530.0,1.01653394]
[1749527277532,0.16879575,109540.0,109530.0,1.01653394]
[1749527279900,0.16879575,109540.0,109530.0,0.46199254]
[1749527280121,0.16879575,109540.0,109530.0,1.01653394]
[1749527280954,0.16879575,109540.0,109530.0,0.47122294]
[1749527281157,0.16879575,109540.0,109530.0,1.02576434]
[1749527283401,0.16879575,109540.0,109530.0,1.02520434]
[1749527283808,0.16879575,109540.0,109530.0,1.02516434]
[1749527284027,0.16879575,109540.0,109530.0,0.47062294]
[1749527284243,0.16879575,109540.0,109530.0,1.02516434]
[1749527284980,0.16879575,109540.0,109530.0,0.19010298]
[1749527285204,0.19983147,109540.0,109530.0,0.11711155]
[1749527285415,0.19983147,109540.0,109530.0,0.17185941]
[1749527285612,0.19983147,109540.0,109530.0,0.17185965]
[1749527285821,0.19983147,109540.0,109530.0,0.17186008]
[1749527286079,0.19983147,109540.0,109530.0,0.15474666]
[1749527286718,0.20894228,109540.0,109530.0,0.15474666]
[1749527286921,0.20894228,109540.0,109530.0,0.17186013]
[1749527287122,0.20894228,109540.0,109530.0,0.15474666]
[1749527287770,0.20894228,109540.0,109530.0,0.19374597]
[1749527287978,0.20894228,109540.0,109530.0,0.19374541]
[1749527288192,0.20894228,109540.0,109530.0,0.1766325]
[1749527288596,0.20894228,109540.0,109530.0,0.5766325]
[1749527288990,0.20894228,109540.0,109530.0,0.59374541]
[1749527289557,0.20894228,109540.0,109530.0,0.5766325]
[1749527289962,0.20894228,109540.0,109530.0,0.59374541]
[1749527290381,0.20894228,109540.0,109530.0,0.5766325]
[1749527291629,0.20894228,109540.0,109530.0,0.59374541]
[1749527292281,0.20894228,109540.0,109530.0,0.5766325]
[1749527292762,0.20894228,109540.0,109530.0,0.63019984]
[1749527293185,0.20894228,109540.0,109530.0,0.61308693]
[1749527293395,0.20894228,109540.0,109530.0,0.63019984]
[1749527293602,0.20894228,109540.0,109530.0,0.61308693]
[1749527294420,0.20894228,109540.0,109530.0,0.63019984]
[1749527295308,0.20894228,109540.0,109530.0,0.63016426]
[1749527295516,0.20894228,109540.0,109530.0,0.61308693]
[1749527295924,0.20894228,109540.0,109530.0,0.63016426]
[1749527296350,0.20894228,109540.0,109530.0,0.61308693]
[1749527297152,0.19983147,109540.0,109530.0,1.16762833]
[1749527297301,0.19983147,109540.0,109530.0,1.18470565]
[1749527297747,0.19983147,109540.0,109530.0,1.18470561]
[1749527297957,0.19983147,109540.0,109530.0,1.16762833]
[1749527298168,0.19221455,109540.0,109530.0,0.63016421]
[1749527298365,0.19983147,109540.0,109530.0,1.18470561]
[1749527298711,0.19983147,109540.0,109530.0,1.1847056]
[1749527299113,0.19983147,109540.0,109530.0,1.1311739]
[1749527299306,0.19983147,109540.0,109530.0,1.14825049]
[1749527299483,0.19983147,109540.0,109530.0,1.1311739]
[1749527299669,0.19983147,109540.0,109530.0,1.14825033]
[1749527299874,0.19983147,109540.0,109530.0,1.14825034]
[1749527300297,0.19983147,109540.0,109530.0,1.14825024]
[1749527300499,0.19983147,109540.0,109530.0,1.14825025]
[1749527300705,0.19983147,109540.0,109530.0,1.1311739]
[1749527300907,0.19983147,109540.0,109530.0,1.14825033]
[1749527301109,0.19983147,109540.0,109530.0,1.1311739]
[1749527301571,0.19983147,109540.0,109530.0,1.14825033]
[1749527302238,0.19983147,109540.0,109530.0,1.1311739]
[1749527302446,0.19983147,109540.0,109530.0,0.59370893]
[1749527302858,0.19983147,109540.0,109530.0,0.5766325]
[1749527303274,0.19983147,109540.0,109530.0,0.59370895]
[1749527304396,0.19221455,109540.0,109530.0,0.59370895]
[1749527304597,0.19983147,109540.0,109530.0,0.59370178]
[1749527304803,0.19983147,109540.0,109530.0,0.5766325]
[1749527305022,0.19983147,109540.0,109530.0,0.59370176]
[1749527305287,0.19983147,109540.0,109530.0,0.57181589]
[1749527305502,0.19983147,109540.0,109530.0,0.52187067]
[1749527305723,0.19983147,109540.0,109530.0,0.53893969]
[1749527305923,0.19983147,109540.0,109530.0,0.52187067]
[1749527306133,0.19983147,109540.0,109530.0,0.53893968]
[1749527306351,0.19983147,109540.0,109530.0,0.52187067]
[1749527306561,0.19983147,109540.0,109530.0,0.53893968]
[1749527306755,0.19221455,109540.0,109530.0,0.52187067]
[1749527306968,0.19983147,109540.0,109530.0,0.52187067]
[1749527307125,0.19221455,109540.0,109530.0,0.53893968]
[1749527307330,0.19983147,109540.0,109530.0,0.53893968]
[1749527307766,0.19983147,109540.0,109530.0,0.52187067]
[1749527307767,0.19221455,109540.0,109530.0,0.52187067]
[1749527307907,0.19983147,109540.0,109530.0,0.538953]
[1749527308102,0.19221455,109540.0,109530.0,0.52187067]
[1749527308303,0.19983147,109540.0,109530.0,0.538953]
[1749527308942,0.19983147,109540.0,109530.0,0.52187067]
[1749527309174,0.19983147,109540.0,109530.0,0.538953]
[1749527309973,0.19983147,109540.0,109530.0,0.52187067]
[1749527310183,0.19983147,109540.0,109530.0,0.538953]
[1749527310380,0.19983147,109540.0,109530.0,0.53896378]
[1749527310951,0.19983147,109540.0,109530.0,0.52187067]
[1749527311179,0.19983147,109540.0,109530.0,0.53896378]
[1749527312128,0.19983147,109540.0,109530.0,0.61195632]
[1749527312331,0.19983147,109540.0,109530.0,0.59486321]
[1749527312472,0.19983147,109540.0,109530.0,0.61195633]
[1749527312685,0.19983147,109540.0,109530.0,0.59486321]
[1749527314114,0.19983147,109540.0,109530.0,0.61195639]
[1749527315491,0.19983147,109540.0,109530.0,0.59486321]
[1749527315753,0.19983147,109540.0,109530.0,0.61196095]
[1749527316516,0.19983147,109540.0,109530.0,0.59486321]
[1749527317531,0.19983147,109540.0,109530.0,0.61196095]
[1749527318487,0.19983147,109540.0,109530.0,0.59486321]
[1749527318886,0.19983147,109540.0,109530.0,0.61196344]
[1749527320108,0.19983147,109540.0,109530.0,0.61196506]
[1749527320545,0.19983147,109540.0,109530.0,0.59486321]
[1749527320964,0.19983147,109540.0,109530.0,0.61196506]
[1749527321575,0.19983147,109540.0,109530.0,1.16650646]
[1749527321782,0.13809575,109540.0,109530.0,1.16650646]
[1749527321987,0.13809575,109540.0,109530.0,1.09351392]
[1749527322200,0.13809575,109540.0,109530.0,1.10641207]
[1749527322401,0.13809575,109540.0,109530.0,1.12351057]
[1749527322601,0.13809575,109540.0,109530.0,1.10641207]
[1749527322813,0.13809575,109540.0,109530.0,1.12351018]
[1749527323056,0.13809575,109540.0,109530.0,1.12351016]
[1749527323267,0.13809575,109540.0,109530.0,0.56896876]
[1749527323458,0.13809575,109540.0,109530.0,1.10641207]
[1749527323666,0.13809575,109540.0,109530.0,1.12350941]
[1749527323806,0.13809575,109540.0,109530.0,1.12350932]
[1749527324008,0.13809575,109540.0,109530.0,1.10850932]
[1749527324229,0.14571267,109540.0,109530.0,1.10850932]
[1749527324449,0.14571267,109540.0,109530.0,0.61196046]
[1749527324656,0.14571267,109540.0,109530.0,1.18360065]
[1749527325457,0.13809575,109540.0,109530.0,1.18360065]
[1749527325657,0.13809575,109540.0,109530.0,1.18360627]
[1749527326181,0.13809575,109540.0,109530.0,1.16650186]
[1749527326344,0.13809575,109540.0,109530.0,1.1836059]
[1749527326704,0.05595112,109540.0,109530.0,0.6290645]
[1749527326907,0.05595112,109540.0,109530.0,1.16173448]
[1749527327082,0.05595112,109540.0,109530.0,1.14463119]
[1749527327460,0.05595112,109540.0,109530.0,1.1617348]
[1749527327661,0.05595112,109540.0,109530.0,1.1617349]
[1749527328108,0.07420903,109540.0,109530.0,1.4849907]
[1749527328312,0.07420903,109540.0,109530.0,1.28413276]
[1749527328717,0.06508012,109540.0,109530.0,1.29325565]
[1749527328927,0.06508012,109540.0,109530.0,1.28412574]
[1749527329121,0.05595112,109540.0,109530.0,1.75152401]
[1749527329324,0.00104853,109540.0,109530.0,1.76064998]
[1749527329523,0.00104853,109540.0,109530.0,1.12515305]
[1749527329524,0.2110168,109540.0,109530.0,1.12515305]
[1749527329728,0.2110168,109540.0,109530.0,1.67969445]
[1749527330129,0.2110168,109540.0,109530.0,1.69678324]
[1749527330335,0.2110168,109540.0,109530.0,1.68882403]
[1749527330725,0.0284351,109540.0,109530.0,1.70591295]
[1749527330927,0.03756418,109540.0,109530.0,2.25249493]
[1749527331124,0.03756418,109540.0,109530.0,2.2695838]
[1749527331399,0.03756418,109540.0,109530.0,2.26958382]
[1749527331526,0.03756418,109540.0,109530.0,2.25249493]
[1749527331727,0.0193056,109540.0,109530.0,2.26958363]
[1749527331938,0.02843443,109540.0,109530.0,2.25249476]
[1749527332386,0.0193056,109540.0,109530.0,2.26958362]
[1749527332762,0.0193056,109540.0,109530.0,2.25249476]
[1749527333110,0.0193056,109540.0,109530.0,2.26958336]
[1749527333313,0.01930552,109540.0,109530.0,2.26958279]
[1749527333451,0.01930552,109540.0,109530.0,2.55870279]
[1749527333647,0.00104853,109540.0,109530.0,2.75870279]
[1749527333897,0.01017694,109540.0,109530.0,2.44962416]
[1749527334100,0.00104853,109540.0,109530.0,2.43253677]
[1749527334298,0.00104853,109540.0,109530.0,2.75870143]
[1749527334477,0.00104853,109540.0,109530.0,2.84962344]
[1749527334683,0.00104853,109540.0,109530.0,2.86670922]
[1749527334887,0.00104853,109540.0,109530.0,2.8667091]
[1749527335282,0.00104853,109540.0,109530.0,2.89328977]
[1749527335488,0.00104853,109540.0,109530.0,2.89328897]
[1749527335718,0.00104853,109540.0,109530.0,2.92068374]
[1749527336107,0.00104853,109540.0,109530.0,2.90359964]
[1749527336317,0.00104853,109540.0,109530.0,2.92068291]
[1749527336524,0.00104853,109540.0,109530.0,2.92068252]
[1749527336726,0.00104853,109540.0,109530.0,2.92068257]
[1749527336931,0.00104853,109540.0,109530.0,2.81267763]
[1749527337275,0.00104853,109540.0,109530.0,2.92707471]
[1749527337483,0.00104853,109540.0,109530.0,2.92707357]
[1749527337693,0.00104853,109540.0,109530.0,2.90997719]
[1749527337896,0.00104853,109540.0,109530.0,2.90997733]
[1749527338121,0.00104853,109540.0,109530.0,2.90997736]
[1749527338323,0.00104853,109540.0,109530.0,2.90997739]
[1749527338532,0.02025525,109550.0,109540.0,0.20996795]
[1749527338738,0.02025525,109550.0,109540.0,1.64051666]
[1749527339154,0.02025525,109550.0,109540.0,2.04051646]
[1749527339361,0.02025525,109550.0,109540.0,2.03412592]
[1749527339592,0.02938308,109550.0,109540.0,2.04051651]
[1749527339799,0.02938308,109550.0,109540.0,2.04551652]
[1749527339997,0.02938308,109550.0,109540.0,0.93004312]
[1749527340204,0.03851108,109550.0,109540.0,2.04551671]
[1749527340420,0.03851108,109550.0,109540.0,2.05464521]
[1749527340622,0.03851166,109550.0,109540.0,2.04551671]
[1749527340826,0.03851166,109550.0,109540.0,2.04825458]
[1749527341569,0.02938358,109550.0,109540.0,2.04825458]
[1749527341778,0.02938358,109550.0,109540.0,2.03912608]
[1749527341981,0.04763999,109550.0,109540.0,2.04825466]
[1749527342166,0.04763999,109550.0,109540.0,2.05464678]
[1749527342367,0.03851174,109550.0,109540.0,2.06377523]
[1749527342591,0.03851174,109550.0,109540.0,2.06377527]
[1749527342877,0.02938358,109550.0,109540.0,2.06377529]
[1749527343137,0.03851166,109550.0,109540.0,2.06377548]
[1749527343336,0.04763982,109550.0,109540.0,2.05464702]
[1749527343538,0.02938391,109550.0,109540.0,2.04525458]
[1749527343980,0.02938391,109550.0,109540.0,2.05164696]
[1749527343981,0.002,109550.0,109540.0,2.05164696]
[1749527344118,0.02938325,109550.0,109540.0,2.10077263]
[1749527344322,0.02025525,109550.0,109540.0,2.103509]
[1749527344544,0.02938316,109550.0,109540.0,2.128903]
[1749527344943,0.02938316,109550.0,109540.0,2.13529443]
[1749527345170,0.02025525,109550.0,109540.0,2.13529328]
[1749527345380,0.02938316,109550.0,109540.0,2.13529327]
[1749527345719,0.02938316,109550.0,109540.0,2.09291019]
[1749527345925,0.02938316,109550.0,109540.0,2.13529328]
[1749527346166,0.002,109550.0,109540.0,2.13529327]
[1749527346369,0.002,109550.0,109540.0,2.13529322]
[1749527346579,0.002,109550.0,109540.0,2.13529264]
[1749527346795,0.002,109550.0,109540.0,2.13529262]
[1749527347012,0.002,109550.0,109540.0,2.13529259]
[1749527347194,0.002,109550.0,109540.0,2.13529302]
[1749527347422,0.002,109550.0,109540.0,2.13529311]
[1749527347628,0.002,109550.0,109540.0,2.128903]
[1749527348287,0.002,109550.0,109540.0,2.1352923]
[1749527348492,0.002,109550.0,109540.0,2.128903]
[1749527348700,0.002,109550.0,109540.0,2.13529238]
[1749527348902,0.002,109550.0,109540.0,2.128903]
[1749527349349,0.002,109550.0,109540.0,2.13529251]
[1749527349566,0.002,109550.0,109540.0,2.128903]
[1749527350191,0.002,109550.0,109540.0,2.42085121]
[1749527350396,0.002,109550.0,109540.0,1.3053802]
[1749527350640,0.002,109550.0,109540.0,2.414463]
[1749527350866,0.002,109550.0,109540.0,1.3117684]
[1749527351050,0.002,109550.0,109540.0,2.414463]
[1749527351503,0.002,109550.0,109540.0,2.42085122]
[1749527351709,0.002,109550.0,109540.0,2.42085099]
[1749527351914,0.002,109550.0,109540.0,2.414463]
[1749527352540,0.002,109550.0,109540.0,2.42084778]
[1749527352717,0.002,109550.0,109540.0,2.414463]
[1749527352926,0.002,109550.0,109540.0,2.42084754]
[1749527353166,0.002,109550.0,109540.0,2.42084765]
[1749527353558,0.002,109550.0,109540.0,2.42084787]
[1749527353766,0.002,109550.0,109540.0,2.42084785]
[1749527353974,0.002,109550.0,109540.0,2.42084784]
[1749527354402,0.04263515,109560.0,109550.0,0.40994903]
[1749527354629,0.04263515,109560.0,109550.0,1.4458353]
[1749527354813,0.04263515,109560.0,109550.0,1.5467608]
[1749527355018,0.04263515,109560.0,109550.0,1.54037595]
[1749527355224,0.04263515,109560.0,109550.0,1.57454015]
[1749527355435,0.04263515,109560.0,109550.0,1.56815823]
[1749527355637,0.04263515,109560.0,109550.0,1.55903057]
[1749527356265,0.04263515,109560.0,109550.0,1.65903554]
[1749527356480,0.04263515,109560.0,109550.0,1.66541746]
[1749527356677,0.04263515,109560.0,109550.0,1.65903554]
[1749527356926,0.04263515,109560.0,109550.0,1.66541746]
[1749527357156,0.03350782,109560.0,109550.0,1.65903554]
[1749527357373,0.04263515,109560.0,109550.0,1.65903554]
[1749527357813,0.03650824,109560.0,109550.0,1.66541737]
[1749527358033,0.0456359,109560.0,109550.0,1.64990788]
[1749527358494,0.0456359,109560.0,109550.0,1.66544624]
[1749527358712,0.03650849,109560.0,109550.0,1.65903571]
[1749527358921,0.03650849,109560.0,109550.0,1.6745739]
[1749527359408,0.03650849,109560.0,109550.0,1.67457388]
[1749527359617,0.03642286,109560.0,109550.0,1.65631847]
[1749527359826,0.0365084,109560.0,109550.0,1.65631845]
[1749527360138,0.0365084,109560.0,109550.0,1.6654462]
[1749527360556,0.0365084,109560.0,109550.0,1.66544616]
[1749527360774,0.04063581,109560.0,109550.0,1.64990796]
[1749527360994,0.0315084,109560.0,109550.0,1.66544611]
[1749527361216,0.21405677,109560.0,109550.0,1.09264923]
[1749527361426,0.0315084,109560.0,109550.0,1.66544605]
[1749527361642,0.02238107,109560.0,109550.0,1.66544606]
[1749527361853,0.0315084,109560.0,109550.0,1.64990788]
[1749527362093,0.0315084,109560.0,109550.0,1.65631835]
[1749527362296,0.04063581,109560.0,109550.0,1.65631837]
[1749527362513,0.04063581,109560.0,109550.0,1.64990788]
[1749527362722,0.0315084,109560.0,109550.0,1.66544603]
[1749527363365,0.03159701,109560.0,109550.0,1.66544603]
[1749527364012,0.02246968,109560.0,109550.0,1.65903554]
[1749527364226,0.01834218,109560.0,109550.0,2.43517237]
[1749527364437,0.01834218,109560.0,109550.0,1.89633097]
[1749527364438,0.02746934,109560.0,109550.0,1.89633097]
[1749527364673,0.01334218,109560.0,109550.0,1.88993554]
[1749527365341,0.02246926,109560.0,109550.0,2.28993554]
[1749527365550,0.02246918,109560.0,109550.0,2.28993554]
[1749527365752,0.01334218,109560.0,109550.0,2.28993554]
[1749527366234,0.02246926,109560.0,109550.0,2.29633066]
[1749527366457,0.02738041,109560.0,109550.0,2.28993554]
[1749527366664,0.02738041,109560.0,109550.0,2.27423554]
[1749527366881,0.02738024,109560.0,109550.0,2.28063066]
[1749527367089,0.02738024,109560.0,109550.0,2.29613066]
[1749527367306,0.02738032,109560.0,109550.0,2.2326443]
[1749527367508,0.02738032,109560.0,109550.0,2.2326442]
[1749527367713,0.02738032,109560.0,109550.0,2.23265924]
[1749527368131,0.02738032,109560.0,109550.0,2.22624923]
[1749527368340,0.22485853,109570.0,109560.0,0.57279598]
[1749527368566,0.21990705,109570.0,109560.0,1.22425496]
[1749527368805,0.21990705,109570.0,109560.0,1.23338221]
[1749527369020,0.21990705,109570.0,109560.0,1.63338221]
[1749527369192,0.21990705,109570.0,109560.0,1.6306648]
[1749527369399,0.21990705,109570.0,109560.0,0.9691337]
[1749527369845,0.21990705,109570.0,109560.0,0.88444727]
[1749527370029,0.21990705,109570.0,109560.0,0.79260944]
[1749527370237,0.21990705,109570.0,109560.0,0.7862]
[1749527370444,0.21990705,109570.0,109560.0,1.3407414]
[1749527370595,0.21990705,109570.0,109560.0,1.34715095]
[1749527370790,0.21990705,109570.0,109560.0,0.7862]
[1749527371226,0.21990705,109570.0,109560.0,1.3407414]
[1749527371441,0.21990705,109570.0,109560.0,1.0545414]
[1749527371678,0.21990705,109570.0,109560.0,1.3405814]
[1749527372020,0.21990705,109570.0,109560.0,1.34699132]
[1749527372219,0.21990705,109570.0,109560.0,1.34699133]
[1749527372715,0.21990705,109570.0,109560.0,1.3469912]
[1749527372909,0.21990705,109570.0,109560.0,1.34699119]
[1749527373114,0.21990705,109570.0,109560.0,1.3405814]
[1749527373368,0.21490705,109570.0,109560.0,1.34699117]
[1749527373576,0.21490705,109570.0,109560.0,1.3405814]
[1749527373834,0.21490705,109570.0,109560.0,1.43167724]
[1749527373980,0.21490705,109570.0,109560.0,1.43808662]
[1749527374166,0.21490705,109570.0,109560.0,1.43167724]
[1749527374974,0.21490705,109570.0,109560.0,1.4380865]
[1749527375199,0.21490705,109570.0,109560.0,1.43808675]
[1749527375402,0.21490705,109570.0,109560.0,1.43167724]
[1749527375609,0.21490705,109570.0,109560.0,0.87713584]
[1749527375765,0.21490705,109570.0,109560.0,1.43167724]
[1749527375974,0.21490705,109570.0,109560.0,0.8835453]
[1749527376359,0.19170705,109570.0,109560.0,1.61422561]
[1749527376564,0.01830109,109570.0,109560.0,2.27610168]
[1749527376791,0.027427,109570.0,109560.0,2.31347302]
[1749527376989,0.0365535,109570.0,109560.0,2.31347302]
[1749527377191,0.04568008,109570.0,109560.0,1.91075535]
[1749527377396,0.04568008,109570.0,109560.0,1.91075528]
[1749527377614,0.04568008,109570.0,109560.0,1.91075531]
[1749527377821,0.04568008,109570.0,109560.0,2.31075531]
[1749527378021,0.04568008,109570.0,109560.0,2.31347302]
[1749527378194,0.027427,109570.0,109560.0,2.31988165]
[1749527378395,0.027427,109570.0,109560.0,2.31988161]
[1749527378858,0.0365535,109570.0,109560.0,2.31075474]
[1749527379133,4.852e-05,109570.0,109560.0,2.31347302]
[1749527379336,0.01,109580.0,109570.0,0.40991046]
[1749527379547,0.02873595,109580.0,109570.0,1.80186172]
[1749527379758,0.02873579,109580.0,109570.0,1.81098772]
[1749527379965,0.0378612,109580.0,109570.0,2.21098772]
[1749527380160,0.02873579,109580.0,109570.0,2.41999077]
[1749527380367,0.0378612,109580.0,109570.0,1.34280797]
[1749527380579,0.0378612,109580.0,109570.0,2.45189077]
[1749527380787,0.0378612,109580.0,109570.0,2.45689077]
[1749527381217,0.0378612,109580.0,109570.0,2.54621077]
[1749527381402,0.0469867,109580.0,109570.0,2.54621077]
[1749527382827,0.01048538,109580.0,109570.0,2.54621077]
[1749527382990,0.01961038,109580.0,109570.0,2.54621077]
[1749527383396,0.02873554,109580.0,109570.0,2.45514033]
[1749527383900,0.03786079,109580.0,109570.0,2.45514033]
[1749527384115,0.05611162,109580.0,109570.0,2.45514033]
[1749527384304,0.04698612,109580.0,109570.0,2.54606177]
[1749527384506,0.03786079,109580.0,109570.0,2.54606177]
[1749527384707,0.02873554,109580.0,109570.0,2.54606177]
[1749527384906,0.03786087,109580.0,109570.0,2.54606177]
[1749527385340,0.03786087,109580.0,109570.0,2.83326177]
[1749527387198,0.04698637,109580.0,109570.0,2.83326177]
[1749527387339,0.04698628,109580.0,109570.0,2.83326177]
[1749527387544,0.05611186,109580.0,109570.0,2.83326177]
[1749527387747,0.03786087,109580.0,109570.0,2.83326177]
[1749527387948,0.04421586,109580.0,109570.0,2.83326177]
[1749527388374,0.03509036,109580.0,109570.0,2.83326177]
[1749527388638,0.04421577,109580.0,109570.0,2.83326177]
[1749527389618,0.2358564,109580.0,109570.0,2.42936336]
[1749527389958,0.2358564,109580.0,109570.0,2.81834201]
[1749527389959,0.0533421,109580.0,109570.0,2.81834201]
[1749527390169,0.0533421,109580.0,109570.0,2.24730061]
[1749527390371,0.04421635,109580.0,109570.0,2.81096801]
[1749527390573,0.05334201,109580.0,109570.0,2.81096801]
[1749527390787,0.05334201,109580.0,109570.0,2.24730061]
[1749527390995,0.23585765,109580.0,109570.0,1.84292196]
[1749527391208,0.04421727,109580.0,109570.0,2.23805437]
[1749527391416,0.03509152,109580.0,109570.0,2.24718045]
[1749527391619,0.22673232,109580.0,109570.0,2.23805437]
[1749527392874,0.04421727,109580.0,109570.0,2.23805437]
[1749527393280,0.21760691,109580.0,109570.0,2.22892821]
[1749527393490,0.03509153,109580.0,109570.0,2.79259577]
[1749527393696,0.21760658,109580.0,109570.0,2.78346961]
[1749527393906,0.21760658,109580.0,109570.0,2.78346969]
[1749527394106,0.21760658,109580.0,109570.0,2.78208805]
[1749527394516,0.21760658,109580.0,109570.0,2.77296172]
[1749527394722,0.21760658,109580.0,109570.0,2.78208813]
[1749527395474,0.21760658,109580.0,109570.0,2.21842032]
[1749527395720,0.21760658,109580.0,109570.0,2.21980196]
[1749527395923,0.20848125,109580.0,109570.0,2.21980196]
[1749527396346,0.20848125,109580.0,109570.0,2.22892837]
[1749527396541,0.20848125,109580.0,109570.0,2.21067546]
[1749527396756,0.20848125,109580.0,109570.0,2.04583683]
[1749527396954,0.20848125,109580.0,109570.0,2.23749495]
[1749527397180,0.20848125,109580.0,109570.0,2.79203635]
[1749527397384,0.20848125,109580.0,109570.0,2.78290994]
[1749527398151,0.19935567,109580.0,109570.0,2.77378344]
[1749527398352,0.23095567,109580.0,109570.0,1.45126375]
[1749527398576,0.23095567,109580.0,109570.0,1.73718375]
[1749527398755,0.23095567,109580.0,109570.0,1.43301426]
[1749527398955,0.23095567,109580.0,109570.0,1.71889426]
[1749527399162,0.23095567,109580.0,109570.0,1.16455286]
[1749527399362,0.23095567,109580.0,109570.0,0.586675]
[1749527399563,0.25437447,109580.0,109570.0,0.57767195]
[1749527399794,0.25437447,109580.0,109570.0,0.505]
[1749527400216,0.25437447,109580.0,109570.0,0.51391774]
[1749527400429,0.25437447,109580.0,109570.0,0.56845669]
[1749527400763,0.25437447,109580.0,109570.0,0.55953895]
[1749527402431,0.23095567,109580.0,109570.0,0.55953895]
[1749527402663,0.23095567,109580.0,109570.0,0.505]
[1749527402664,0.25437447,109580.0,109570.0,0.505]
[1749527403338,0.25437447,109580.0,109570.0,0.5141355]
[1749527410066,0.25437447,109580.0,109570.0,0.5741355]
[1749527415097,0.25437447,109580.0,109570.0,0.6600425]
[1749527421597,0.25437447,109580.0,109570.0,0.73271445]
[1749527426914,0.25437447,109580.0,109570.0,0.72357895]
[1749527427096,0.25437447,109580.0,109570.0,0.70554577]
[1749527427097,0.26199139,109580.0,109570.0,0.70554577]
[1749527427293,0.26199139,109580.0,109570.0,0.68734144]
[1749527427497,0.28938739,109580.0,109570.0,0.71466842]
[1749527427742,0.38118525,109580.0,109570.0,0.65466842]
[1749527427942,0.38118525,109580.0,109570.0,0.62734144]
[1749527427943,0.47462525,109580.0,109570.0,0.62734144]
[1749527429109,0.47462525,109580.0,109570.0,0.590907]
[1749527429302,0.47462525,109580.0,109570.0,0.62735628]
[1749527430075,0.47462525,109580.0,109570.0,0.22735628]
[1749527430284,0.47462525,109580.0,109570.0,0.190907]
[1749527430487,0.47462525,109580.0,109570.0,0.62735473]
[1749527431534,0.47462525,109580.0,109570.0,0.65468026]
[1749527434170,0.47462525,109580.0,109570.0,0.66109275]
[1749527434413,0.47462525,109580.0,109570.0,0.66109274]
[1749527434627,0.47462525,109580.0,109570.0,0.65468026]
[1749527435403,0.47462525,109580.0,109570.0,0.66109273]
[1749527435605,0.47462525,109580.0,109570.0,0.66109272]
[1749527435969,0.47462525,109580.0,109570.0,0.65468026]
[1749527436575,0.47462525,109580.0,109570.0,0.62463219]
[1749527436790,0.47462525,109580.0,109570.0,0.62463231]
[1749527437004,0.47462525,109580.0,109570.0,0.61823253]
[1749527437406,0.47462525,109580.0,109570.0,0.62463213]
[1749527437608,0.47462525,109580.0,109570.0,0.61823253]
[1749527437813,0.47462525,109580.0,109570.0,0.66107982]
[1749527438022,0.47462525,109580.0,109570.0,0.65468026]
[1749527438447,0.47462525,109580.0,109570.0,0.66107988]
[1749527438660,0.47462525,109580.0,109570.0,0.65468026]
[1749527438862,0.47462525,109580.0,109570.0,0.61823253]
[1749527439067,0.47462525,109580.0,109570.0,0.66107993]
[1749527439270,0.4891661,109580.0,109570.0,0.62463203]
[1749527439479,0.4891661,109580.0,109570.0,0.59730772]
[1749527439683,0.4891661,109580.0,109570.0,0.59730684]
[1749527440100,0.4891661,109580.0,109570.0,0.590907]
[1749527440301,0.4891661,109580.0,109570.0,0.59730596]
[1749527440514,0.4891661,109580.0,109570.0,0.59730589]
[1749527440720,0.4891661,109580.0,109570.0,0.590907]
[1749527440921,0.4891661,109580.0,109570.0,0.59730572]
[1749527441336,0.4891661,109580.0,109570.0,0.59730569]
[1749527441569,0.4891661,109580.0,109570.0,0.590907]
[1749527441976,0.4891661,109580.0,109570.0,0.59730569]
[1749527442384,0.4891661,109580.0,109570.0,0.190907]
[1749527442584,0.4891661,109580.0,109570.0,0.19730573]
[1749527442789,0.4891661,109580.0,109570.0,0.59730569]
[1749527442994,0.4891661,109580.0,109570.0,0.590907]
[1749527443202,0.4891661,109580.0,109570.0,0.5973057]
[1749527443401,0.4891661,109580.0,109570.0,0.59730392]